bitfinex/quotes_SOLUSD_20250724
["timestamp","ask_amount","ask_price","bid_price","bid_amount"]
[1753379989381,42.97184526,188.97,188.96,0.69000001]
[1753379990498,26.0,189.0,188.96,5.98616369]
[1753379990705,37.64,188.99,188.97,5.98616368]
[1753379990907,37.64,188.99,188.98,0.69]
[1753379991409,26.0,188.97,188.96,1e-08]
[1753379991616,63.64,188.97,188.96,1e-08]
[1753379991981,63.64,188.97,188.96,5.98616369]
[1753379992607,26.0,188.97,188.96,5.98616369]
[1753379992781,26.0,189.0,188.96,5.98616369]
[1753379992981,37.64,188.99,188.97,5.98616368]
[1753379993179,37.64,188.99,188.98,0.69]
[1753379993383,37.64,188.99,188.98,5.98616368]
[1753379994389,37.64,188.99,188.96,1e-08]
[1753379994583,26.0,188.97,188.96,1e-08]
[1753379994797,68.93184526,188.97,188.96,1e-08]
[1753379995627,68.93184526,188.97,188.96,0.69000001]
[1753379995984,37.64,188.97,188.96,5.98616369]
[1753379996702,37.62,188.97,188.96,5.98616369]
[1753379996910,37.62,188.97,188.96,0.69000001]
[1753379997512,37.62,188.97,188.96,1e-08]
[1753379998026,37.62,188.97,188.96,0.68000001]
[1753379998827,37.6,188.97,188.96,1e-08]
[1753379999721,37.6,188.97,188.96,0.68000001]
[1753380000243,37.6,188.97,188.96,1e-08]
[1753380000244,42.89184526,188.97,188.96,1e-08]
[1753380000730,48.75800894,188.97,188.96,1e-08]
[1753380001233,26.0,188.94,188.88,0.06]
[1753380001401,5.29616368,188.89,188.88,0.06]
[1753380001606,42.89616368,188.89,188.88,0.06]
[1753380001811,10.58852198,188.96,188.88,6.03616368]
[1753380002010,31.2923583,188.96,188.92,5.29616368]
[1753380002201,26.0,188.92,188.88,0.06]
[1753380002413,37.62,188.91,188.88,0.06]
[1753380002826,37.62,188.91,188.88,0.74]
[1753380003406,37.62,188.91,188.88,0.06]
[1753380003407,26.0,188.89,188.88,0.06]
[1753380003740,63.64,188.89,188.88,0.74]
[1753380004033,68.9340865,188.89,188.88,0.06]
[1753380004808,37.64,188.89,188.88,6.03616368]
[1753380005208,37.64,188.89,188.88,0.06]
[1753380006009,42.9340865,188.89,188.88,0.06]
[1753380006428,48.23025018,188.89,188.88,0.06]
[1753380006732,48.80025018,188.89,188.88,0.06]
[1753380007112,48.23025018,188.89,188.88,0.06]
[1753380007522,48.80025018,188.89,188.88,0.06]
[1753380007812,48.23025018,188.89,188.88,0.06]
[1753380009134,48.80025018,188.89,188.88,0.06]
[1753380009642,42.9140865,188.89,188.88,0.06]
[1753380009811,68.9140865,188.89,188.88,0.06]
[1753380010010,74.21025018,188.89,188.88,0.06]
[1753380010238,74.78025018,188.89,188.88,0.06]
[1753380010419,74.21025018,188.89,188.88,0.06]
[1753380010620,48.78025018,188.89,188.88,0.06]
[1753380011137,5.2940865,188.89,188.88,0.06]
[1753380011346,26.0,188.89,188.88,0.06]
[1753380011514,2.75235133,188.93,188.88,6.03616368]
[1753380011714,37.64,188.92,188.9,5.29616368]
[1753380012015,37.64,188.92,188.91,0.68]
[1753380013131,42.93324581,188.92,188.91,5.97616368]
[1753380013540,37.64,188.92,188.91,5.97616368]
[1753380013715,42.93324581,188.92,188.91,5.97616368]
[1753380014037,37.64,188.92,188.91,5.97616368]
[1753380014840,42.93324581,188.92,188.89,0.68]
[1753380015012,42.93324581,188.92,188.88,0.06]
[1753380015212,43.50324581,188.92,188.88,0.06]
[1753380015515,42.93324581,188.92,188.88,5.35616368]
[1753380015835,42.93324581,188.92,188.89,5.97616368]
[1753380016018,42.93324581,188.92,188.9,0.68]
[1753380016226,42.93324581,188.92,188.89,5.29616368]
[1753380016428,42.93324581,188.92,188.91,0.68]
[1753380016628,61.46252403,188.92,188.88,0.06]
[1753380016845,26.0,188.89,188.88,0.06]
[1753380017143,68.95616368,188.89,188.88,0.06]
[1753380017354,69.52616368,188.89,188.85,0.06]
[1753380017645,5.29616368,188.87,188.85,0.06]
[1753380017850,26.0,188.84,188.81,0.06]
[1753380018023,5.29616368,188.82,188.81,0.06]
[1753380018341,5.86616368,188.82,188.76,0.68]
[1753380018545,31.29616368,188.8,188.76,0.68]
[1753380018742,42.97689072,188.79,188.76,0.68]
[1753380019323,48.2730544,188.79,188.76,0.68]
[1753380019519,48.2730544,188.79,188.76,0.18]
[1753380019850,5.29616368,188.78,188.72,11.63766368]
[1753380020148,37.68,188.77,188.72,11.63766368]
[1753380020647,5.29689072,188.79,188.76,5.29616368]
[1753380020821,37.68,188.77,188.74,5.29616368]
[1753380021021,37.68,188.77,188.73,5.29616368]
[1753380021232,37.68,188.77,188.72,11.63766368]
[1753380021617,42.97616368,188.77,188.73,0.68]
[1753380022621,5.29773257,188.76,188.73,0.68]
[1753380022838,37.7,188.75,188.73,0.68]
[1753380023718,42.99808216,188.75,188.73,0.68]
[1753380023919,5.29616368,188.74,188.71,0.68]
[1753380024136,37.7,188.73,188.71,0.68]
[1753380024449,42.99616368,188.73,188.68,0.68]
[1753380024739,26.0,188.69,188.64,0.68]
[1753380024942,26.0,188.69,188.66,5.29616368]
[1753380025243,37.74,188.68,188.65,5.29616368]
[1753380025421,37.74,188.68,188.66,5.29616368]
[1753380025616,0.7,188.77,188.68,16.78468397]
[1753380025816,69.03616368,188.76,188.7,5.29616368]
[1753380026031,31.29616368,188.73,188.67,5.29616368]
[1753380026228,37.74,188.72,188.66,8.0651]
[1753380026430,43.03616368,188.72,188.67,5.29616368]
[1753380026632,37.74,188.72,188.67,5.29616368]
[1753380026962,26.7,188.75,188.68,5.97616368]
[1753380026963,37.76,188.71,188.68,5.97616368]
[1753380027121,37.76,188.71,188.68,0.68]
[1753380028023,37.76,188.71,188.69,0.67]
[1753380028452,37.76,188.71,188.68,5.29616368]
[1753380028749,0.72,188.78,188.7,22.08084765]
[1753380028938,37.78,188.77,188.72,5.29616368]
[1753380029144,43.07616368,188.77,188.73,0.67]
[1753380029535,5.29616368,188.74,188.69,0.67]
[1753380029731,37.78,188.73,188.7,0.67]
[1753380030439,37.78,188.73,188.71,0.67]
[1753380030666,37.78,188.73,188.72,0.67]
[1753380030825,5.29616368,188.75,188.69,0.67]
[1753380031025,26.0,188.76,188.7,5.29616368]
[1753380031233,37.76,188.75,188.72,5.29616368]
[1753380031465,37.76,188.75,188.72,0.67]
[1753380031639,0.72,188.81,188.74,5.29616368]
[1753380031827,5.29616368,188.76,188.7,0.67]
[1753380032145,43.05616368,188.75,188.7,0.67]
[1753380032326,43.77616368,188.75,188.7,0.67]
[1753380032648,37.76,188.75,188.71,0.67]
[1753380032951,38.48,188.75,188.7,5.29616368]
[1753380033163,38.48,188.75,188.7,5.96616368]
[1753380033563,37.76,188.75,188.71,5.96616368]
[1753380033730,37.76,188.75,188.72,5.96616368]
[1753380034546,37.76,188.75,188.72,0.67]
[1753380034954,43.05803149,188.75,188.72,0.67]
[1753380035160,0.72,188.74,188.67,0.67]
[1753380035340,6.01616368,188.74,188.68,5.29616368]
[1753380035656,5.29857468,188.73,188.68,5.29616368]
[1753380035855,37.82,188.72,188.68,5.29616368]
[1753380036044,43.83616368,188.72,188.66,5.96616368]
[1753380036556,38.54,188.72,188.66,5.96616368]
[1753380036738,37.82,188.72,188.68,5.29616368]
[1753380036937,37.82,188.72,188.68,5.96616368]
[1753380037138,37.82,188.72,188.68,0.67]
[1753380037748,37.82,188.72,188.68,5.29616368]
[1753380037959,37.82,188.72,188.69,0.67]
[1753380038658,37.82,188.72,188.69,5.96616368]
[1753380039260,37.82,188.72,188.65,16.78468397]
[1753380039261,0.72,188.71,188.65,0.67]
[1753380039459,43.1189055,188.72,188.65,0.67]
[1753380039460,49.13506918,188.72,188.65,5.96616368]
[1753380039665,6.0189055,188.72,188.67,5.29616368]
[1753380039839,43.15915918,188.71,188.67,5.29616368]
[1753380040155,43.15915918,188.71,188.67,5.96616368]
[1753380040567,37.86,188.71,188.68,5.29616368]
[1753380040740,37.86,188.71,188.69,5.96616368]
[1753380041266,37.86,188.71,188.69,5.29616368]
[1753380043942,43.15923951,188.71,188.64,16.84468397]
[1753380044140,43.87923951,188.71,188.65,0.67]
[1753380044337,0.72,188.7,188.65,5.29616368]
[1753380044541,0.72,188.7,188.64,0.06]
[1753380044542,6.01616368,188.7,188.64,0.06]
[1753380044784,26.0,188.68,188.64,0.06]
[1753380045080,37.84,188.67,188.64,0.06]
[1753380045376,43.85616368,188.67,188.64,0.06]
[1753380045553,6.01616368,188.66,188.64,0.06]
[1753380045751,5.30082162,188.65,188.64,0.06]
[1753380045948,6.02082162,188.65,188.64,0.06]
[1753380046144,11.3169853,188.65,188.64,0.06]
[1753380046346,32.02082162,188.65,188.64,0.06]
[1753380046549,11.3169853,188.65,188.64,0.06]
[1753380046744,26.0,188.62,188.54,0.67]
[1753380047062,26.0,188.62,188.53,5.29616368]
[1753380047063,5.29616368,188.59,188.53,5.29616368]
[1753380047263,0.72,188.58,188.51,0.67]
[1753380047451,0.72,188.58,188.52,5.29616368]
[1753380047658,37.9,188.57,188.53,0.67]
[1753380047850,5.30272256,188.59,188.54,0.67]
[1753380048051,38.62,188.58,188.51,0.67]
[1753380048756,0.72,188.62,188.57,5.29616368]
[1753380048972,37.9,188.61,188.58,5.96616368]
[1753380049161,37.92,188.6,188.58,5.29616368]
[1753380049353,0.72,188.59,188.53,0.67]
[1753380049566,5.29616368,188.58,188.49,11.39980546]
[1753380049785,43.93616368,188.57,188.51,5.29616368]
[1753380049951,26.0,188.54,188.49,6.0945]
[1753380050158,63.94,188.53,188.48,0.67]
[1753380050352,0.72,188.52,188.48,5.29616368]
[1753380050556,26.0,188.54,188.51,5.29616368]
[1753380050861,26.0,188.54,188.49,0.67]
[1753380050862,37.98,188.53,188.5,5.29616368]
[1753380051382,26.0,188.55,188.52,5.29616368]
[1753380051586,0.72,188.56,188.5,0.67]
[1753380051763,11.51947303,188.6,188.54,5.29616368]
[1753380051764,37.98,188.55,188.54,5.29616368]
[1753380052078,37.98,188.55,188.52,0.67]
[1753380052282,38.7,188.55,188.52,5.29616368]
[1753380052580,26.0,188.57,188.52,5.29616368]
[1753380052581,37.98,188.54,188.52,5.29616368]
[1753380052777,37.98,188.54,188.5,5.30502096]
[1753380052982,0.72,188.53,188.48,5.30533339]
[1753380053484,0.72,188.53,188.49,5.29616368]
[1753380053987,0.72,188.52,188.48,10.60165254]
[1753380054164,38.0,188.51,188.48,5.29616368]
[1753380054359,38.72,188.51,188.48,5.29616368]
[1753380054580,38.72,188.51,188.45,0.14216157]
[1753380054581,0.72,188.5,188.45,22.09105969]
[1753380054780,0.72,188.57,188.5,16.78468397]
[1753380055083,37.98,188.56,188.51,0.28432314]
[1753380055266,1.5667,188.63,188.52,0.67]
[1753380055596,0.72,188.58,188.51,0.28432314]
[1753380055755,26.0,188.56,188.49,0.28432314]
[1753380055954,0.72,188.55,188.48,16.78468397]
[1753380056185,32.0238667,188.55,188.47,0.67]
[1753380056369,6.01616368,188.54,188.49,5.29616368]
[1753380056686,38.76,188.53,188.47,0.67]
[1753380056982,38.76,188.53,188.44,6.7645]
[1753380057162,5.29616368,188.52,188.44,6.7645]
[1753380057358,26.0,188.48,188.41,2.3558]
[1753380057580,38.04,188.47,188.42,5.29616368]
[1753380057758,38.74,188.47,188.44,0.06]
[1753380057961,38.06,188.46,188.44,5.35616368]
[1753380058262,38.06,188.46,188.44,0.06]
[1753380058462,38.06,188.46,188.44,5.35616368]
[1753380058783,38.06,188.45,188.44,0.75]
[1753380058965,26.0,188.5,188.44,11.352864]
[1753380059166,38.06,188.49,188.44,0.75]
[1753380059484,38.06,188.48,188.45,8.67381207]
[1753380060067,0.7,188.47,188.45,8.67381207]
[1753380060382,0.7,188.47,188.44,0.06]
[1753380060383,38.06,188.48,188.46,8.67381207]
[1753380060707,38.06,188.48,188.47,8.67381207]
[1753380060988,1.5062,188.54,188.47,8.67381207]
[1753380060989,3.45103903,188.57,188.48,16.78468397]
[1753380061192,0.7,188.55,188.5,8.67381207]
[1753380061362,46.77381207,188.56,188.5,8.67381207]
[1753380061363,26.0,188.53,188.5,8.67381207]
[1753380061561,26.0,188.53,188.48,16.78468397]
[1753380061562,3.45103903,188.57,188.52,8.67381207]
[1753380061768,9.37381207,188.6,188.54,8.67381207]
[1753380061978,6.0023409,188.6,188.55,8.67381207]
[1753380062285,6.0023409,188.6,188.49,6.91912314]
[1753380062286,8.67381207,188.56,188.5,5.99501634]
[1753380062489,38.12,188.55,188.51,8.67381207]
[1753380062785,38.82,188.55,188.51,8.67381207]
[1753380062985,0.7,188.54,188.5,8.67381207]
[1753380063179,8.67381207,188.51,188.43,0.69]
[1753380063374,0.7,188.53,188.5,8.67381207]
[1753380063573,38.12,188.52,188.5,8.67381207]
[1753380063897,38.12,188.52,188.49,8.67381207]
[1753380064063,26.0,188.53,188.51,8.67381207]
[1753380064265,38.14,188.52,188.51,8.67381207]
[1753380064888,0.7,188.55,188.51,8.67381207]
[1753380065094,38.14,188.54,188.51,8.67381207]
[1753380065394,0.7,188.53,188.47,0.28432314]
[1753380065596,9.37381207,188.53,188.47,8.67381207]
[1753380065896,38.12,188.52,188.5,8.67381207]
[1753380066095,38.12,188.52,188.51,8.67381207]
[1753380066281,26.7,188.54,188.51,8.67381207]
[1753380066486,38.14,188.53,188.51,8.67381207]
[1753380066783,38.12,188.52,188.51,8.67381207]
[1753380066988,38.12,188.52,188.51,9.36381207]
[1753380067295,5.30194581,188.61,188.52,17.06900711]
[1753380067617,8.67381207,188.65,188.59,8.67381207]
[1753380067906,2.74957947,188.65,188.58,0.69]
[1753380068087,1.5702,188.69,188.62,8.67381207]
[1753380068088,8.67381207,188.68,188.62,8.67381207]
[1753380068274,6.00007996,188.68,188.63,8.67381207]
[1753380068476,38.14,188.67,188.63,8.67381207]
[1753380068804,6.00001891,188.68,188.64,8.67381207]
[1753380069012,38.14,188.66,188.64,8.67381207]
[1753380069378,11.42301739,188.69,188.63,2.63174263]
[1753380069379,8.04896156,188.69,188.63,2.63174263]
[1753380069597,38.14,188.68,188.64,8.67381207]
[1753380069872,0.7,188.67,188.64,8.67381207]
[1753380070173,26.0,188.65,188.63,8.67381207]
[1753380070378,38.14,188.68,188.63,8.67381207]
[1753380070577,16.72276302,188.69,188.64,8.67381207]
[1753380070773,38.84,188.68,188.63,8.67381207]
[1753380070996,9.37381207,188.67,188.56,17.75900711]
[1753380071196,34.67381207,188.64,188.59,0.28432314]
[1753380071400,38.14,188.63,188.59,17.06900711]
[1753380071790,8.67381207,188.61,188.54,8.67774011]
[1753380071991,8.67381207,188.59,188.54,2.61424011]
[1753380072194,38.86,188.58,188.54,16.78468397]
[1753380072398,38.86,188.58,188.54,25.45849604]
[1753380072705,38.16,188.58,188.54,16.78468397]
[1753380072887,8.67381207,188.56,188.5,9.36381207]
[1753380073086,0.7,188.55,188.51,8.67381207]
[1753380073288,14.67637488,188.59,188.53,8.67381207]
[1753380073492,38.14,188.58,188.53,8.67381207]
[1753380073888,0.7,188.57,188.52,8.67381207]
[1753380074091,46.81381207,188.58,188.52,9.36381207]
[1753380074297,52.11685299,188.58,188.52,9.36381207]
[1753380075098,38.14,188.57,188.52,9.36381207]
[1753380075310,5.30304092,188.58,188.53,8.67381207]
[1753380075512,38.14,188.56,188.53,0.69]
[1753380075694,38.14,188.56,188.53,9.36381207]
[1753380076014,6.00228338,188.6,188.54,17.75900711]
[1753380076214,46.79381207,188.59,188.54,17.75900711]
[1753380076390,52.09639851,188.59,188.54,17.75900711]
[1753380076590,52.79639851,188.59,188.54,17.75900711]
[1753380077108,47.49381207,188.59,188.54,17.75900711]
[1753380077690,52.7964387,188.59,188.54,17.75900711]
[1753380078690,52.7964387,188.59,188.54,17.06900711]
[1753380079388,52.7964387,188.59,188.54,0.69]
[1753380079590,52.7964387,188.59,188.46,0.69]
[1753380079591,34.67381207,188.55,188.46,0.69]
[1753380079891,8.67381207,188.53,188.47,8.67381207]
[1753380080096,9.37381207,188.53,188.49,0.06]
[1753380080305,0.7,188.52,188.49,0.06]
[1753380081010,38.08,188.54,188.5,9.36381207]
[1753380081526,43.38402489,188.54,188.5,9.36381207]
[1753380081711,43.38402489,188.54,188.5,8.67381207]
[1753380082805,43.38402489,188.54,188.49,0.06]
[1753380082806,8.67381207,188.52,188.49,0.06]
[1753380083001,0.7,188.53,188.49,0.06]
[1753380083002,8.67381207,188.51,188.49,0.06]
[1753380083309,38.88,188.5,188.49,0.06]
[1753380083505,38.18,188.5,188.49,0.06]
[1753380083823,38.88,188.5,188.49,0.06]
[1753380083994,47.55381207,188.5,188.49,0.06]
[1753380084716,52.85885185,188.5,188.49,0.06]
[1753380085317,6.00503978,188.5,188.49,0.06]
[1753380085524,35.37381207,188.53,188.49,0.06]
[1753380085697,38.18,188.52,188.49,0.06]
[1753380086498,0.7,188.56,188.51,8.67381207]
[1753380086706,5.30341024,188.56,188.51,9.36381207]
[1753380086906,38.18,188.55,188.5,25.45849604]
[1753380087111,38.88,188.55,188.5,25.45849604]
[1753380087513,38.18,188.55,188.51,8.67381207]
[1753380087713,38.18,188.55,188.51,9.32381207]
[1753380088525,54.66576132,188.6,188.54,8.67381207]
[1753380088526,46.712242,188.6,188.54,8.67381207]
[1753380088701,0.03,188.6,188.59,8.67381207]
[1753380089020,38.21,188.6,188.58,8.67381207]
[1753380089225,38.21,188.6,188.57,9.32381207]
[1753380089695,46.88381207,188.6,188.55,0.28432314]
[1753380089900,9.35381207,188.59,188.55,0.28432314]
[1753380090237,26.0,188.57,188.51,10.23601207]
[1753380090446,38.18,188.56,188.51,10.23601207]
[1753380090746,44.16341982,188.56,188.51,10.23601207]
[1753380090930,44.16341982,188.56,188.51,10.88601207]
[1753380091319,44.16341982,188.56,188.52,8.67381207]
[1753380091619,38.18,188.56,188.52,9.32381207]
[1753380092323,8.67381207,188.54,188.49,0.06]
[1753380092526,8.67381207,188.52,188.49,0.06]
[1753380092710,5.30475836,188.51,188.49,0.06]
[1753380092911,38.18,188.5,188.49,0.06]
[1753380093738,38.86,188.5,188.49,0.06]
[1753380094735,52.83885185,188.5,188.49,0.06]
[1753380095223,52.83885185,188.5,188.49,1e-08]
[1753380096040,5.30481679,188.51,188.49,1e-08]
[1753380096249,26.0,188.52,188.49,1e-08]
[1753380096409,0.68,188.55,188.49,8.67381208]
[1753380096605,46.85381207,188.54,188.49,1e-08]
[1753380096823,31.30419561,188.53,188.49,1e-08]
[1753380097039,31.98419561,188.53,188.49,1e-08]
[1753380097731,38.18,188.52,188.49,1e-08]
[1753380097925,26.68,188.53,188.51,8.67381207]
[1753380097926,26.0,188.53,188.51,8.67381207]
[1753380098117,38.18,188.52,188.51,8.67381207]
[1753380099713,26.0,188.55,188.51,14.62857043]
[1753380099932,14.68631404,188.6,188.54,8.67381207]
[1753380100213,46.83381207,188.59,188.53,8.67381207]
[1753380100414,72.83381207,188.59,188.53,8.67381207]
[1753380100614,34.67381207,188.59,188.53,8.67381207]
[1753380100929,38.16,188.58,188.54,8.67381207]
[1753380101238,9.38381207,188.6,188.54,8.67381207]
[1753380101535,38.14,188.59,188.54,8.67381207]
[1753380102050,69.44253648,188.59,188.54,8.67381207]
[1753380102259,70.12253648,188.59,188.54,8.67381207]
[1753380102653,8.67381207,188.55,188.49,1e-08]
[1753380102848,8.67381207,188.53,188.49,1e-08]
[1753380103052,26.0,188.56,188.5,8.67381207]
[1753380103053,38.16,188.52,188.5,8.67381207]
[1753380103243,38.16,188.52,188.49,8.67381208]
[1753380103633,38.16,188.52,188.49,1e-08]
[1753380103946,0.68,188.51,188.49,1e-08]
[1753380104141,9.35381207,188.51,188.49,1e-08]
[1753380104455,0.68,188.5,188.49,1e-08]
[1753380104757,5.30479025,188.51,188.49,1e-08]
[1753380104954,38.16,188.52,188.49,1e-08]
[1753380105328,38.16,188.51,188.49,9.32381208]
[1753380105775,38.16,188.51,188.49,8.67381208]
[1753380105960,38.16,188.51,188.49,1e-08]
[1753380106854,38.16,188.51,188.49,8.67381208]
[1753380107059,38.14,188.52,188.5,9.32381207]
[1753380107267,38.14,188.52,188.51,8.67381207]
[1753380107936,38.14,188.52,188.5,8.67381207]
[1753380108454,38.14,188.52,188.49,8.67381208]
[1753380108834,38.14,188.52,188.49,1e-08]
[1753380109034,38.14,188.52,188.49,8.67381208]
[1753380109234,0.68,188.54,188.49,8.67381208]
[1753380109458,38.12,188.52,188.49,8.67381208]
[1753380109858,38.12,188.52,188.5,8.67381207]
[1753380110448,5.30368122,188.55,188.5,8.67381207]
[1753380110755,38.1,188.54,188.5,8.67381207]
[1753380111456,38.1,188.53,188.5,8.67381207]
[1753380111661,38.1,188.53,188.51,8.67381207]
[1753380112559,26.0,188.54,188.51,8.67381207]
[1753380112749,38.08,188.53,188.51,9.32381207]
[1753380113247,38.08,188.53,188.51,8.67381207]
[1753380113864,38.08,188.54,188.52,9.32381207]
[1753380114050,38.08,188.54,188.53,9.32381207]
[1753380114246,38.08,188.54,188.53,8.67381207]
[1753380114454,26.0,188.54,188.53,8.67381207]
[1753380114656,64.08,188.54,188.53,8.67381207]
[1753380115559,64.08,188.54,188.5,5.95490728]
[1753380115751,64.08,188.54,188.53,8.67381207]
[1753380116262,64.08,188.54,188.5,5.95490728]
[1753380116564,26.0,188.54,188.53,8.67381207]
[1753380116744,64.08,188.54,188.53,8.67381207]
[1753380118671,38.04,188.55,188.53,9.39381207]
[1753380118862,26.0,188.59,188.54,9.39381207]
[1753380119048,0.03,188.6,188.58,8.67381207]
[1753380119365,0.03,188.6,188.59,8.67381207]
[1753380119746,0.03,188.6,188.59,14.69632015]
[1753380119958,0.03,188.6,188.59,9.39381207]
[1753380120167,0.03,188.6,188.59,9.67813521]
[1753380120556,0.75,188.6,188.52,22.80916094]
[1753380120830,9.42381207,188.6,188.51,6.0499]
[1753380120948,0.72,188.59,188.54,8.67381207]
[1753380121153,38.76,188.58,188.54,8.67381207]
[1753380121482,38.04,188.58,188.54,8.67381207]
[1753380121648,38.04,188.58,188.56,8.67381207]
[1753380121848,0.03,188.6,188.56,8.67381207]
[1753380122055,38.78,188.59,188.54,0.28432314]
[1753380122248,0.72,188.58,188.55,8.67381207]
[1753380122458,0.72,188.57,188.54,8.67381207]
[1753380122675,38.04,188.56,188.55,9.39381207]
[1753380122867,5.33230384,188.6,188.56,0.28432314]
[1753380122868,0.03,188.6,188.56,0.28432314]
[1753380123068,0.03,188.6,188.58,8.67381207]
[1753380123386,38.07,188.6,188.59,9.39381207]
[1753380124179,38.07,188.6,188.54,0.28432314]
[1753380124180,44.43227741,188.6,188.54,0.28432314]
[1753380124356,44.43227741,188.6,188.54,8.95813521]
[1753380124961,53.10608948,188.6,188.54,8.95813521]
[1753380125863,44.43227741,188.6,188.56,8.67381207]
[1753380126065,38.39,188.6,188.58,8.67381207]
[1753380126472,38.39,188.6,188.57,0.72]
[1753380126663,38.39,188.6,188.58,8.67381207]
[1753380126961,38.39,188.6,188.57,9.39381207]
[1753380127162,38.39,188.6,188.57,8.67381207]
[1753380127666,38.39,188.6,188.58,8.67381207]
[1753380128680,38.39,188.6,188.57,9.39381207]
[1753380129075,38.39,188.6,188.58,8.67381207]
[1753380129376,0.03,188.6,188.58,8.67381207]
[1753380131560,0.03,188.6,188.57,0.72]
[1753380131561,0.03,188.6,188.57,9.39381207]
[1753380133754,0.72,188.59,188.54,8.67381207]
[1753380133958,0.72,188.58,188.54,8.67381207]
[1753380134253,0.72,188.58,188.55,8.67381207]
[1753380134472,8.70381207,188.6,188.55,8.67381207]
[1753380134671,0.75,188.6,188.56,8.67381207]
[1753380135960,0.75,188.6,188.56,9.39381207]
[1753380136280,5.33235232,188.6,188.55,8.67381207]
[1753380136487,0.72,188.59,188.55,8.67381207]
[1753380136668,38.3,188.58,188.55,8.67381207]
[1753380137070,38.3,188.58,188.56,8.67381207]
[1753380137477,0.03,188.6,188.57,9.39381207]
[1753380137682,0.03,188.6,188.59,8.67381207]
[1753380138087,0.03,188.6,188.58,8.67381207]
[1753380138969,0.03,188.6,188.57,8.67381207]
[1753380139284,0.03,188.6,188.56,0.72]
[1753380139583,0.03,188.6,188.57,5.31585018]
[1753380139789,5.31585018,188.58,188.49,1e-08]
[1753380139969,5.31585018,188.53,188.49,1e-08]
[1753380140175,38.24,188.52,188.49,1e-08]
[1753380140375,38.96,188.52,188.49,1e-08]
[1753380141168,0.72,188.51,188.49,1e-08]
[1753380141369,6.03585018,188.51,188.49,1e-08]
[1753380141566,6.02503978,188.5,188.49,1e-08]
[1753380141765,11.34088996,188.5,188.49,1e-08]
[1753380142066,11.34088996,188.5,188.43,17.50468397]
[1753380142067,26.0,188.47,188.37,6.4553]
[1753380142268,5.31585018,188.43,188.36,5.31585018]
[1753380142467,5.31585018,188.41,188.34,5.31585018]
[1753380142688,0.72,188.4,188.34,5.31585018]
[1753380142886,38.3,188.39,188.34,5.31585018]
[1753380143188,38.3,188.39,188.34,9.40419472]
[1753380143598,38.3,188.39,188.36,8.68419472]
[1753380143775,38.3,188.39,188.35,0.72]
[1753380143973,38.3,188.39,188.36,8.68419472]
[1753380144274,0.72,188.38,188.32,16.78468397]
[1753380144467,0.72,188.38,188.29,16.78468397]
[1753380144667,0.72,188.38,188.33,8.68419472]
[1753380144868,36.32856069,188.41,188.34,8.68419472]
[1753380145170,38.62,188.4,188.38,8.68419472]
[1753380145384,9.40419472,188.39,188.33,8.68419472]
[1753380145584,38.62,188.4,188.32,25.46887869]
[1753380145585,9.40419472,188.38,188.32,25.46887869]
[1753380145790,43.94870096,188.37,188.32,25.46887869]
[1753380146187,0.72,188.36,188.32,25.46887869]
[1753380146572,38.64,188.37,188.32,25.46887869]
[1753380146773,39.36,188.37,188.32,25.46887869]
[1753380146967,39.36,188.37,188.32,16.78468397]
[1753380147198,0.72,188.36,188.31,11.11304858]
[1753380147390,0.67,188.35,188.31,2.14453072]
[1753380147699,8.68419472,188.36,188.31,2.14453072]
[1753380147700,0.5,188.36,188.34,30.77838399]
[1753380147887,38.62,188.38,188.34,8.68419472]